bitfinex/quotes_ETHUSD_20260114
["timestamp","ask_amount","ask_price","bid_price","bid_amount"]
[1768416552671,3.41296127,3321.2,3320.0,0.98647766]
[1768416552871,3.41296127,3321.2,3320.1,0.70107555]
[1768416553275,0.402,3321.2,3320.1,0.70107555]
[1768416553474,0.402,3321.2,3320.2,6.4187335]
[1768416553771,0.001,3321.2,3320.2,6.4187335]
[1768416554942,0.001,3321.7,3320.7,0.98647766]
[1768416555143,0.001,3321.7,3320.8,0.395]
[1768416555463,0.001,3321.7,3320.9,6.02246378]
[1768416555666,0.001,3321.7,3321.0,0.74039414]
[1768416556378,0.001,3321.7,3321.1,0.98647766]
[1768416556880,3.13775315,3323.7,3321.1,0.98647766]
[1768416556881,0.99222249,3322.9,3321.1,0.98647766]
[1768416557092,0.401,3323.2,3321.1,0.98647766]
[1768416557270,3.00947779,3322.9,3321.1,0.98647766]
[1768416557576,3.01025908,3323.1,3321.0,0.74039414]
[1768416557577,6.01951816,3323.1,3321.3,0.98647766]
[1768416557782,6.01951816,3323.1,3321.2,9.03287967]
[1768416557783,3.01025908,3323.1,3321.4,1.38147766]
[1768416557950,6.01951816,3323.1,3321.4,1.38147766]
[1768416558286,0.99222249,3323.0,3321.4,1.38147766]
[1768416558453,0.99222249,3323.0,3321.5,0.98647766]
[1768416559046,0.001,3323.1,3321.5,0.98647766]
[1768416559586,0.001,3323.1,3322.3,0.98647766]
[1768416559886,0.001,3323.1,3322.4,0.395]
[1768416560187,3.00971555,3323.7,3322.4,0.395]
[1768416560188,0.001,3323.7,3322.5,0.98647766]
[1768416560962,0.001,3323.7,3322.6,0.395]
[1768416560963,0.97802378,3323.7,3322.6,0.395]
[1768416561181,0.97702378,3323.5,3322.3,0.395]
[1768416561490,1.01463586,3323.4,3322.3,0.395]
[1768416561792,0.97702378,3323.2,3322.2,0.395]
[1768416562092,0.001,3322.5,3322.2,0.395]
[1768416562456,0.001,3322.5,3322.3,0.34051432]
[1768416562998,3.00972126,3323.7,3322.4,0.94754584]
[1768416563162,0.001,3323.7,3322.4,0.94754584]
[1768416563562,0.001,3323.7,3322.3,9.37032778]
[1768416563563,0.001,3323.7,3322.6,0.94754584]
[1768416563808,0.001,3323.7,3322.7,1.68674766]
[1768416563987,0.001,3323.7,3322.8,0.395]
[1768416564493,0.001,3323.7,3322.7,0.73920182]
[1768416564664,0.001,3323.7,3322.8,0.395]
[1768416565966,0.001,3323.7,3322.8,3.40449976]
[1768416566167,0.001,3323.7,3322.9,0.41437016]
[1768416567882,3.00969512,3323.7,3322.9,0.41437016]
[1768416568082,0.03760982,3323.6,3322.9,0.41437016]
[1768416568980,1.0146336,3323.6,3321.9,0.94754584]
[1768416569183,1.0146336,3323.6,3322.4,3.00986296]
[1768416569406,0.97702378,3323.6,3322.4,3.00986296]
[1768416569602,0.97702378,3323.6,3322.5,0.395]
[1768416569796,0.97702378,3323.6,3322.5,3.74526671]
[1768416569797,1.67656518,3323.6,3322.5,3.74526671]
[1768416570005,3.00887618,3323.5,3322.5,3.74526671]
[1768416570193,3.00970139,3323.7,3322.5,6.7550485]
[1768416570812,3.00970139,3323.7,3322.5,0.7354863]
[1768416570813,0.97702378,3323.6,3322.5,0.7354863]
[1768416571011,0.69954266,3323.5,3322.5,3.74525648]
[1768416571192,1.67656644,3323.5,3322.5,0.7354863]
[1768416571391,1.67656644,3323.5,3322.6,0.395]
[1768416571924,1.67656644,3323.5,3322.6,3.40466143]
[1768416571925,4.68547858,3323.5,3322.6,3.40466143]
[1768416572087,3.00891214,3323.5,3322.6,3.40466143]
[1768416572429,3.00891214,3323.5,3322.6,0.395]
[1768416572594,3.00891214,3323.5,3322.6,3.40468826]
[1768416572795,3.00878565,3323.6,3322.6,3.40468826]
[1768416572991,3.00878565,3323.6,3322.6,3.77920572]
[1768416574143,0.001,3323.7,3322.6,7.73644276]
[1768416574295,0.001,3323.4,3322.7,0.94754584]
[1768416574707,0.001,3323.7,3322.7,0.94754584]
[1768416576336,0.001,3323.7,3322.8,6.0190201]
[1768416576529,0.001,3323.7,3322.9,0.69665659]
[1768416577652,0.001,3323.7,3323.0,0.94754584]
[1768416577814,0.001,3323.7,3323.2,0.94754584]
[1768416578015,0.001,3324.0,3323.2,0.94754584]
[1768416578350,3.98489758,3324.7,3323.3,6.96566036]
[1768416578504,0.97702378,3324.7,3323.4,0.40844993]
[1768416578934,3.98484803,3324.7,3323.4,0.40844993]
[1768416579143,0.0375985,3324.6,3323.4,0.40844993]
[1768416579527,3.98484803,3324.7,3323.4,0.40844993]
[1768416579952,0.0375985,3324.6,3323.4,0.40844993]
[1768416580158,0.0375985,3324.6,3323.5,0.3404863]
[1768416580447,0.97702378,3324.4,3323.6,0.395]
[1768416581522,0.001,3324.8,3323.6,1.34254584]
[1768416581726,0.001,3324.8,3323.7,0.94754584]
[1768416582307,0.97702378,3325.7,3324.2,0.94754584]
[1768416582511,0.97702378,3325.7,3324.3,1.7170633]
[1768416582824,0.97702378,3326.1,3324.4,0.94754584]
[1768416582971,0.001,3326.3,3324.8,0.94754584]
[1768416583165,0.001,3326.3,3325.0,0.94754584]
[1768416583394,0.001,3326.3,3325.1,1.34254584]
[1768416584262,0.001,3326.3,3325.4,0.94754584]
[1768416584467,0.001,3326.3,3325.5,1.09120408]
[1768416584697,0.97802378,3326.3,3325.3,0.395]
[1768416584903,0.97802378,3326.3,3324.6,3.95538563]
[1768416584904,0.97702378,3326.1,3324.2,0.94754584]
[1768416585101,0.97702378,3325.9,3323.8,3.95611554]
[1768416585401,0.97702378,3325.7,3324.3,3.00806342]
[1768416585588,0.97702378,3325.7,3324.4,0.395]
[1768416585790,0.001,3326.3,3324.5,0.94754584]
[1768416585966,0.97802378,3326.3,3324.0,0.94754584]
[1768416586172,0.97702378,3326.1,3324.2,3.00822852]
[1768416586379,0.97702378,3325.8,3324.2,0.30082285]
[1768416586588,0.97702378,3325.8,3323.9,3.00849774]
[1768416586589,0.97702378,3325.6,3323.9,3.00849774]
[1768416586910,0.97702378,3325.4,3323.9,0.394]
[1768416587090,0.97702378,3325.2,3323.9,0.394]
[1768416587274,0.97702378,3325.0,3324.0,0.394]
[1768416587479,0.97702378,3324.8,3324.0,0.394]
[1768416588301,3.0454022,3324.7,3324.0,0.394]
[1768416588592,3.0077207,3324.8,3323.8,3.00858688]
[1768416588793,3.0077207,3324.8,3323.9,0.69485869]
[1768416590405,6.92536711,3325.1,3323.9,0.69485869]
[1768416592299,6.92536711,3325.1,3323.9,3.70334598]
[1768416593181,6.01485668,3325.1,3323.9,3.70336534]
[1768416593375,6.01485668,3325.1,3323.9,0.69485869]
[1768416593568,0.60148567,3325.0,3323.9,0.69485869]
[1768416593996,1.5119961,3325.0,3323.9,0.69485869]
[1768416594372,1.5119961,3325.0,3323.9,3.70333682]
[1768416594569,3.60903186,3325.0,3323.9,3.70333682]
[1768416594774,3.91776309,3325.3,3323.9,3.70333682]
[1768416595075,3.0073379,3325.2,3323.9,6.71185091]
[1768416598416,3.91784833,3325.2,3323.9,6.71185091]
[1768416598884,6.92518623,3325.2,3324.2,0.002]
[1768416599083,0.69251862,3325.1,3324.3,0.395]
[1768416599900,4.61052434,3325.1,3324.3,0.395]
[1768416600837,0.91051043,3325.0,3324.3,0.395]
[1768416601292,0.91051043,3325.6,3324.4,0.99844711]
[1768416601617,0.001,3325.9,3324.6,0.99844711]
[1768416601825,0.001,3325.9,3324.8,0.99844711]
[1768416601988,0.001,3325.9,3324.7,9.02337051]
[1768416601989,0.001,3325.9,3325.0,0.99844711]
[1768416602398,0.91151043,3325.9,3325.1,0.395]
[1768416602720,0.001,3325.9,3325.1,0.395]
[1768416602892,0.001,3326.3,3325.1,0.395]
[1768416602893,0.001,3326.3,3325.2,0.99844711]
[1768416603087,0.91051043,3327.1,3325.1,0.395]
[1768416603088,0.91051043,3327.1,3325.6,0.99844711]
[1768416603287,0.91051043,3327.1,3325.7,0.395]
[1768416603728,3.00460571,3328.3,3325.8,0.99844711]
[1768416603729,0.91051043,3328.0,3325.8,0.99844711]
[1768416604019,0.30056057,3328.2,3326.4,0.99844711]
[1768416604322,6.95750419,3328.1,3326.6,0.99844711]
[1768416604525,6.91994523,3328.1,3326.6,0.99844711]
[1768416604726,3.00373349,3329.2,3326.6,0.99844711]
[1768416604727,0.91151043,3328.4,3326.6,0.99844711]
[1768416604929,0.001,3328.4,3326.6,0.99844711]
[1768416605228,3.00453685,3328.3,3326.6,0.99844711]
[1768416605426,0.001,3328.4,3326.5,0.395]
[1768416605427,0.001,3328.4,3326.8,0.99844711]
[1768416605628,0.001,3328.4,3327.0,0.99844711]
[1768416605934,0.001,3328.4,3326.9,0.73860563]
[1768416605935,0.001,3328.4,3327.4,0.99844711]
[1768416606638,0.001,3328.7,3327.4,0.99844711]
[1768416607201,0.001,3328.7,3327.3,6.01087968]
[1768416607418,0.91151043,3328.7,3327.4,0.395]
[1768416607630,0.91151043,3328.7,3327.5,0.34004398]
[1768416607631,0.03755332,3328.6,3327.5,0.34004398]
[1768416607831,0.91051043,3328.5,3327.5,0.34004398]
[1768416608013,0.94806488,3328.5,3327.5,0.394]
[1768416608214,0.91051043,3328.5,3327.5,0.394]
[1768416609238,0.91051043,3328.5,3327.5,0.19753377]
[1768416609600,0.91051043,3328.5,3326.6,0.99844711]
[1768416609799,6.0085321,3328.6,3325.5,3.00702805]
[1768416609800,0.91051043,3328.1,3326.2,0.99844711]
[1768416610000,0.91051043,3328.0,3326.6,3.00605515]
[1768416610244,0.03756122,3327.9,3326.5,3.00612921]
[1768416610400,0.94807165,3327.9,3326.2,0.99844711]
[1768416610603,0.69190425,3328.4,3326.7,0.99844711]
[1768416610830,0.91051043,3328.5,3326.9,1.00044711]
[1768416611003,0.91051043,3328.5,3327.0,0.394]
[1768416611204,0.91051043,3328.3,3327.0,0.394]
[1768416611405,0.91051043,3328.1,3327.0,0.394]
[1768416611606,0.91051043,3328.1,3327.1,0.394]
[1768416611607,0.03756009,3328.0,3327.1,0.394]
[1768416611839,3.00489798,3327.9,3327.1,0.394]
[1768416612006,0.94807278,3327.8,3326.9,0.002]
[1768416612207,0.91051043,3327.8,3326.9,0.002]
[1768416613638,6.00979596,3327.9,3326.9,0.002]
[1768416613838,6.92030639,3327.9,3326.9,0.002]
[1768416614018,0.94807278,3327.8,3326.9,0.002]
[1768416614221,0.91051043,3327.6,3326.9,0.002]
[1768416614403,0.03756574,3327.5,3326.9,0.002]
[1768416614610,6.00979596,3327.9,3326.9,0.002]
[1768416615241,0.91051043,3327.8,3326.9,0.002]
[1768416615447,0.91051043,3327.6,3326.9,0.002]
[1768416615772,0.91051043,3327.4,3326.6,0.002]
[1768416615904,0.91051043,3327.2,3326.6,0.002]
[1768416616112,0.91051043,3327.2,3325.9,0.394]
[1768416616418,3.00536037,3327.4,3326.0,0.99844711]
[1768416617120,6.01072074,3327.4,3325.9,3.40068958]
[1768416617314,0.89551043,3327.3,3325.2,1.00044711]
[1768416617532,0.89551043,3327.3,3325.3,0.394]
[1768416617739,0.91051043,3327.2,3325.3,1.39244711]
[1768416617941,6.01124102,3327.1,3325.4,0.99844711]
[1768416618108,6.01124102,3327.1,3325.3,0.394]
[1768416618109,0.91051043,3327.6,3325.6,0.99844711]
[1768416619341,6.0105184,3327.5,3325.7,7.01221863]
[1768416619789,0.91051043,3327.4,3325.7,6.01377152]
[1768416619982,0.91051043,3327.4,3325.8,0.60137715]
[1768416620284,0.91051043,3327.4,3325.8,1.59982426]
[1768416620475,6.0105184,3327.5,3325.9,0.90006715]
[1768416620476,3.0052592,3327.5,3325.9,0.90006715]
[1768416620679,3.00508635,3327.7,3326.0,1.32431273]
[1768416620885,6.0101727,3327.7,3326.0,1.32431273]
[1768416621400,6.0101727,3327.7,3326.1,6.0130483]
[1768416621576,6.0101727,3327.7,3326.2,0.7337361]
[1768416622662,6.97485418,3327.7,3326.2,0.7337361]
[1768416622975,0.96468148,3327.6,3326.2,0.7337361]
[1768416623482,0.96468148,3327.4,3326.3,0.394]
[1768416623856,3.0052592,3327.5,3326.3,1.32431273]
[1768416624060,6.0105184,3327.5,3326.4,0.73371737]
[1768416624268,0.03756686,3327.4,3326.3,0.394]
[1768416624564,0.96468148,3327.9,3326.3,0.394]
[1768416624766,2.98000745,3327.8,3326.3,1.32431273]
[1768416624963,2.98000745,3327.8,3326.4,0.93031273]
[1768416625385,5.9850149,3327.8,3326.5,6.01232526]
[1768416625590,5.9850149,3327.8,3326.6,0.6942638]
[1768416626382,6.94969638,3327.8,3326.7,0.394]
[1768416627107,1.00224496,3327.7,3326.7,0.394]
[1768416627312,0.96468148,3327.7,3326.7,0.394]
[1768416627486,6.97501926,3327.6,3326.7,0.394]
[1768416627691,7.97052193,3327.6,3326.7,0.394]
[1768416628385,4.00067156,3327.6,3326.7,0.394]
[1768416628598,3.00516889,3327.6,3326.7,0.394]
[1768416629013,3.00516889,3327.6,3326.7,3.39996566]
[1768416629233,6.01033778,3327.6,3326.7,0.394]
[1768416629419,6.97501926,3327.6,3326.7,0.394]
[1768416629595,6.97501926,3327.6,3326.0,0.002]
[1768416629596,1.00224722,3327.5,3326.0,0.002]
[1768416629780,0.96468148,3327.5,3326.1,0.394]
[1768416629985,0.96468148,3327.5,3326.4,3.00625096]
[1768416630186,0.96468148,3327.5,3326.5,3.00615664]
[1768416630385,6.01033778,3327.6,3326.3,3.00631725]
[1768416630600,6.01033778,3327.6,3326.2,0.93031273]
[1768416630601,1.00224722,3327.5,3326.4,0.393663]
[1768416631006,0.96468148,3327.5,3326.5,3.00610652]
[1768416631229,3.00468646,3328.2,3326.8,0.93031273]
[1768416631518,3.00426607,3328.6,3327.1,0.93031273]
[1768416631721,0.03755445,3328.5,3327.2,0.99474453]
[1768416632524,3.96894755,3328.6,3327.2,0.99474453]
[1768416632730,7.01076694,3328.6,3327.2,0.99474453]
[1768416632905,6.97321362,3328.6,3327.2,0.99474453]
[1768416633101,0.96468148,3328.5,3327.3,0.58650573]
[1768416633415,3.00453685,3328.3,3327.3,3.59193574]
[1768416633630,6.97375518,3328.3,3327.3,0.58650573]
[1768416633830,6.97375518,3328.3,3327.3,0.19250573]
[1768416633831,0.96468148,3328.2,3327.3,0.19250573]
[1768416634133,0.96468148,3328.2,3325.8,3.00678189]
[1768416634134,0.96468148,3328.0,3326.5,3.00608739]
[1768416634291,0.96468148,3328.0,3326.0,3.93889006]
[1768416634292,0.96468148,3327.8,3326.6,0.394]
[1768416634493,0.4,3328.1,3326.3,3.4003413]
[1768416634494,0.96468148,3327.6,3326.3,3.4003413]
[1768416634825,0.96468148,3327.9,3326.6,3.00603317]
[1768416635005,6.97375518,3328.3,3326.5,0.93031273]
[1768416635330,0.96468148,3328.2,3326.9,3.00571494]
[1768416635505,6.0094348,3328.1,3327.0,0.394]
[1768416637022,3.0047174,3328.1,3327.0,3.39964919]
[1768416637213,3.96894753,3328.6,3327.1,0.33996492]
[1768416637800,6.97321358,3328.6,3327.1,0.33996492]
[1768416638004,3.96894753,3328.6,3327.1,0.33996492]
[1768416638445,0.001,3328.7,3327.2,0.93031273]
[1768416638828,0.001,3328.7,3327.1,0.33996492]
[1768416638829,3.96842752,3329.2,3327.7,0.93031273]
[1768416639029,3.96842752,3329.2,3327.8,0.394]
[1768416639233,6.97217356,3329.2,3327.9,6.00979596]
[1768416639404,6.97217356,3329.2,3328.0,0.6403796]
[1768416640214,0.96468148,3329.1,3328.0,0.6403796]
[1768416641441,0.96468148,3328.9,3328.0,0.6403796]
[1768416641647,0.96468148,3328.7,3327.8,0.394]
[1768416641844,0.96468148,3328.7,3327.7,3.00504435]
[1768416642049,0.96468148,3328.7,3326.5,0.522]
[1768416642050,0.96468148,3327.0,3325.6,1e-08]
[1768416642445,0.96468148,3327.4,3325.6,3.00696195]
[1768416642753,0.96468148,3327.2,3325.6,1e-08]
[1768416643272,0.96468148,3326.8,3325.6,1e-08]
[1768416643542,0.96468148,3326.6,3325.6,1e-08]
[1768416644741,1.36468148,3326.5,3325.6,1e-08]
[1768416644958,0.96468148,3326.4,3325.6,1e-08]
[1768416645318,0.96468148,3326.2,3325.6,1e-08]
[1768416645523,0.73773682,3326.1,3325.6,1e-08]
[1768416647157,3.00661455,3326.0,3325.9,0.002]
[1768416647353,3.00661455,3326.0,3325.6,1e-08]
[1768416647751,3.74427982,3326.1,3325.6,1e-08]
[1768416648053,0.96468148,3326.6,3325.6,1e-08]
[1768416648637,0.4,3326.7,3325.6,1e-08]
[1768416648638,3.00616263,3326.5,3325.6,1e-08]
[1768416649023,6.01214452,3326.6,3325.6,1e-08]
[1768416652337,3.00607226,3326.6,3325.6,1e-08]
[1768416653164,6.01214452,3326.6,3325.6,1e-08]
[1768416653767,3.00607226,3326.6,3325.6,1e-08]
[1768416654439,4.37067826,3326.7,3325.6,1e-08]
[1768416654636,3.29501472,3328.1,3325.6,1e-08]
[1768416654637,0.93017927,3327.6,3325.6,1e-08]
[1768416654957,0.93017927,3327.4,3325.6,1e-08]
[1768416655856,6.01087968,3327.3,3325.6,1e-08]
[1768416656236,3.00543984,3327.3,3325.6,1e-08]
[1768416657373,6.01087968,3327.3,3325.6,1e-08]
[1768416657966,6.94087831,3327.4,3325.6,0.92397826]
[1768416658161,0.73408783,3327.3,3325.8,0.92397825]
[1768416658369,0.73408783,3327.3,3325.9,0.393]
[1768416658535,0.73408783,3327.3,3326.0,0.92397825]
[1768416658738,3.00534952,3327.4,3326.0,0.92397825]
[1768416658938,0.001,3327.0,3326.0,0.92397825]
[1768416659348,3.00527781,3327.5,3326.0,0.92397825]
[1768416659547,3.00507858,3327.7,3326.0,0.92397825]
[1768416659754,0.93017927,3327.6,3326.0,0.92397825]
[1768416660069,3.93561911,3327.3,3326.1,6.4060483]
[1768416660275,0.03756912,3327.2,3326.1,6.4060483]
[1768416660780,3.00501997,3327.8,3326.1,6.4060483]
[1768416660781,3.00400847,3328.9,3326.3,0.92397825]
[1768416660941,3.00489798,3327.9,3326.3,0.92397825]
[1768416661340,6.00979596,3327.9,3326.3,0.92397825]
[1768416661567,6.00979596,3327.9,3326.1,3.00652415]
[1768416661568,0.93017927,3327.7,3326.1,3.00652415]
[1768416661743,0.93017927,3327.5,3326.1,3.39952415]
[1768416662245,0.93017927,3327.5,3326.1,6.4060483]
[1768416662246,1.33017927,3327.5,3326.1,6.4060483]
[1768416662441,3.00519179,3327.6,3326.2,0.92397825]
[1768416662634,0.93017927,3327.9,3326.2,0.92397825]
[1768416662835,0.93017927,3327.9,3326.4,0.92397825]
[1768416663034,3.00489773,3328.0,3326.4,0.92397825]
[1768416663274,3.40473266,3328.1,3326.4,0.92397825]
[1768416663971,4.33491193,3328.1,3326.4,0.92397825]
[1768416664169,6.00979596,3327.9,3326.5,6.01232526]
[1768416664472,0.93017927,3330.4,3328.2,0.92397825]
[1768416664770,0.93017927,3330.4,3328.3,0.393]
[1768416664945,0.93017927,3330.2,3328.3,0.393]
[1768416665358,0.93017927,3330.1,3328.3,0.393]
[1768416665543,0.93017927,3330.1,3328.2,0.92397825]
[1768416665544,0.93017927,3329.9,3328.1,0.15644657]
[1768416665940,0.93017927,3329.7,3328.1,0.15644657]
[1768416666141,0.93017927,3329.5,3328.1,0.15644657]
[1768416666341,0.93017927,3329.3,3328.1,0.15644657]
[1768416666575,0.99783561,3329.2,3328.1,0.15644657]
[1768416666770,0.96772695,3329.1,3328.1,0.15644657]
[1768416667271,0.93017927,3329.0,3327.3,3.00543658]
[1768416667574,0.93017927,3329.0,3327.4,3.39834522]
[1768416667777,0.93017927,3329.0,3327.5,3.00523884]
[1768416667980,0.93017927,3329.0,3327.6,0.33982388]
[1768416668345,4.00157591,3329.2,3327.7,6.93413541]
[1768416668551,3.0037403,3329.2,3327.7,6.93413541]
[1768416668777,6.93772746,3329.2,3327.7,3.00507858]
[1768416668977,0.93017927,3329.1,3327.7,3.00507858]
[1768416669153,0.96772695,3329.1,3327.7,3.39807858]
[1768416669354,0.93017927,3329.1,3327.7,3.39807858]
[1768416669687,0.69377275,3329.0,3327.8,0.33980786]
[1768416670264,0.69377275,3329.0,3328.0,0.002]
[1768416670580,3.00385004,3329.1,3328.0,0.002]
[1768416670780,6.00770008,3329.1,3328.0,0.002]
[1768416670953,6.97542703,3329.1,3328.0,0.002]
[1768416671152,6.93787935,3329.1,3328.0,0.002]
[1768416671353,0.03754881,3329.0,3328.0,0.002]
[1768416671555,0.69754282,3328.9,3328.0,0.002]
[1768416671880,0.93017927,3328.8,3328.0,0.002]
[1768416672083,0.69754282,3328.9,3328.0,0.002]
[1768416672084,0.93017927,3328.6,3328.0,0.002]
[1768416672389,3.93471612,3328.3,3327.6,0.002]
[1768416672559,0.39347161,3328.2,3327.6,0.002]
[1768416674362,3.0047174,3328.1,3327.6,0.002]
[1768416675851,0.39347161,3328.2,3327.6,0.002]
[1768416675852,3.39813784,3328.2,3327.6,0.002]
[1768416676290,3.70158923,3328.9,3327.6,0.002]
[1768416676291,0.69754282,3328.9,3327.6,0.002]
[1768416676503,3.00393846,3329.0,3327.7,6.01015716]
[1768416676801,6.00787692,3329.0,3327.8,0.393]
[1768416677794,6.00787692,3329.0,3327.9,3.00489798]
[1768416678300,3.00393846,3329.0,3327.9,6.00979596]
[1768416678602,3.00393846,3329.0,3328.0,0.6402796]
[1768416679095,0.93017927,3330.0,3328.1,0.92397825]
[1768416679301,0.93117927,3330.1,3328.4,0.92397825]
[1768416679597,6.00685526,3330.1,3328.7,8.09079649]
[1768416679760,6.00685526,3330.1,3328.5,0.84402488]
[1768416679761,6.00618636,3329.9,3328.5,0.84402488]
[1768416679965,0.93017927,3329.8,3328.0,0.6402796]
[1768416680180,0.93017927,3329.8,3327.9,0.92397825]
[1768416680181,0.93017927,3329.7,3328.5,3.00433227]
[1768416680388,0.96772018,3329.7,3328.5,0.393]
[1768416680594,0.93017927,3329.7,3328.4,0.393]
[1768416680783,3.00309318,3329.9,3328.5,6.00870132]
[1768416681101,3.00309318,3329.9,3328.5,6.93327827]
[1768416681306,3.00309318,3329.9,3328.6,0.73262783]
[1768416681973,4.36468567,3330.1,3328.6,0.73262783]
[1768416681974,3.003003,3330.0,3328.7,3.0041758]
[1768416682302,3.003003,3330.0,3328.7,6.0083516]
[1768416683062,1.3617599,3330.1,3328.7,6.0083516]
[1768416683882,0.001,3330.1,3328.7,9.93710435]
[1768416684066,0.001,3330.1,3328.8,1.06697322]
[1768416684468,0.001,3330.1,3328.9,0.92457695]
[1768416684669,0.001,3330.1,3329.0,0.393]
[1768416684994,0.001,3330.1,3329.0,1.31757695]
[1768416686074,0.001,3330.1,3329.1,6.00762968]
[1768416686277,0.001,3330.1,3329.2,0.53653201]
[1768416687078,0.001,3330.1,3329.2,1.46110896]
[1768416687587,0.001,3330.1,3329.3,0.393]
[1768416688302,0.001,3330.1,3329.4,3.00354418]
[1768416688497,0.001,3330.1,3329.4,6.00708836]
[1768416688814,0.001,3330.1,3329.5,0.64000884]
[1768416689492,0.9617599,3330.1,3329.1,0.393]
[1768416689799,0.9617599,3330.1,3329.1,3.39681096]
[1768416689997,0.9617599,3330.1,3329.2,3.00369633]
[1768416689998,0.001,3330.1,3329.2,3.00369633]
[1768416690307,0.001,3330.1,3329.1,3.39680252]
[1768416690473,0.001,3330.1,3329.2,0.64006215]
[1768416691174,0.001,3330.1,3329.2,1.5646391]
[1768416691369,0.001,3330.1,3329.3,0.92457695]
[1768416691891,3.40246209,3330.6,3329.3,0.92457695]
[1768416692406,3.40246209,3330.6,3329.4,6.00708836]
[1768416692609,0.9607599,3330.8,3329.5,1.61774348]
[1768416692808,0.9607599,3330.8,3329.6,0.393]
[1768416692809,0.03752964,3330.7,3329.6,0.393]
[1768416692977,0.99828954,3330.7,3329.6,0.393]
[1768416693409,0.99828954,3330.7,3329.5,0.69316653]
[1768416693410,0.9607599,3330.7,3329.7,0.393]
[1768416694588,0.9607599,3331.0,3329.8,3.00318337]
[1768416695006,0.9607599,3331.0,3329.7,3.39627334]
[1768416695007,0.9607599,3331.0,3329.7,3.39623796]
[1768416696219,0.9607599,3331.0,3329.7,0.393]
[1768416696376,0.9607599,3330.8,3329.5,0.69316653]
[1768416696575,0.9607599,3330.6,3329.6,0.393]
[1768416696875,3.04011211,3330.5,3329.7,3.00326329]
[1768416697282,6.04269232,3330.5,3329.3,0.92457695]
[1768416697482,0.9607599,3330.4,3329.3,3.00361305]
[1768416697685,0.9607599,3330.4,3329.4,0.6933613]
[1768416697887,0.9607599,3330.4,3329.5,3.00339888]
[1768416698205,0.9607599,3330.4,3329.4,0.393]
[1768416698407,0.9607599,3330.4,3329.0,0.92457695]
[1768416698713,0.9607599,3330.0,3329.0,0.393]
[1768416699115,3.0028619,3330.2,3329.0,0.393]
[1768416699287,0.9607599,3330.3,3329.0,1.31757695]
[1768416699609,0.99829518,3330.2,3328.7,0.92457695]
[1768416699807,0.99829518,3330.2,3328.5,9.01506893]
[1768416699808,0.9607599,3330.1,3328.5,6.01071262]
[1768416700008,0.9607599,3330.1,3328.8,0.395]
[1768416701082,3.9637629,3330.0,3328.9,3.00399531]
[1768416701283,7.7033423,3330.0,3328.9,3.64430723]
[1768416701683,0.9607599,3329.9,3328.9,3.64430723]
[1768416701981,0.9607599,3329.9,3328.9,6.64830254]
[1768416702182,0.9607599,3329.9,3328.9,3.64430723]
[1768416702707,0.9607599,3329.9,3328.9,6.64830254]
[1768416702900,3.7395794,3330.0,3329.0,0.70433025]
[1768416703211,4.7003393,3330.0,3329.1,3.00381484]
[1768416703411,4.7003393,3330.0,3329.0,3.70821533]
[1768416703594,4.6003393,3330.0,3329.0,3.70821533]
[1768416704587,7.6033423,3330.0,3329.0,0.70433025]
[1768416704785,1.72109413,3329.9,3328.9,3.00391768]
[1768416705318,1.72109413,3329.9,3328.9,3.00399531]
[1768416705495,0.399,3330.2,3328.9,3.92857226]
[1768416705816,0.9607599,3330.6,3329.0,0.92457695]
[1768416706984,0.9607599,3330.4,3329.0,0.92457695]
[1768416707238,6.9664052,3330.2,3329.1,3.69700602]
[1768416707509,6.9664052,3330.2,3329.1,3.39674926]
[1768416707510,0.9607599,3330.1,3329.1,3.39674926]
[1768416707885,0.9607599,3330.1,3329.3,0.002]
[1768416708601,3.00276674,3330.3,3329.3,0.002]
[1768416708915,3.96344295,3330.4,3329.3,0.002]
[1768416710286,0.94656174,3330.7,3329.3,0.91847885]
[1768416710514,3.00226689,3330.9,3329.4,0.91647885]
[1768416711016,0.98409026,3330.8,3329.4,0.91647885]
[1768416711214,0.94656174,3330.8,3329.4,0.91647885]
[1768416711512,0.94656174,3330.8,3329.3,0.73471411]
[1768416711513,6.0042557,3331.0,3329.7,6.92302597]
[1768416711714,3.00212785,3331.0,3329.8,0.393]
[1768416711916,3.00160739,3331.6,3329.8,0.393]
[1768416711917,0.94656174,3331.4,3329.9,0.91647885]
[1768416712407,3.94803246,3331.7,3329.9,0.91647885]
[1768416712715,0.94656174,3331.6,3329.9,0.91647885]
[1768416713031,0.94656174,3331.6,3330.1,0.91647885]
[1768416714011,0.94656174,3331.6,3330.0,0.84762971]
[1768416714012,0.96972844,3332.7,3330.3,0.91647885]
[1768416714340,0.96972844,3332.7,3330.2,9.00846795]
[1768416714341,0.94656174,3332.5,3330.5,0.91647885]
[1768416714537,0.94656174,3332.5,3330.7,0.91647885]
[1768416715222,0.94656174,3332.3,3330.9,0.91647885]
[1768416715421,0.94656174,3332.6,3330.9,0.91647885]
[1768416716106,3.00075018,3332.5,3331.1,0.91647885]
[1768416716306,3.00075018,3332.5,3331.2,0.69206818]
[1768416716307,6.9480621,3332.5,3331.2,0.69206818]
[1768416716529,0.94656174,3332.4,3331.3,0.393]
[1768416717311,0.94656174,3332.2,3331.4,0.393]
[1768416717638,0.94656174,3332.0,3331.1,0.393]
[1768416717808,0.94656174,3332.0,3331.1,0.73251671]
[1768416718206,0.94656174,3331.8,3330.6,3.59311145]
[1768416718409,0.98407899,3331.8,3330.7,0.393]
[1768416718938,0.94656174,3331.8,3330.7,3.3953638]
[1768416719312,0.94656174,3331.8,3330.7,0.393]
[1768416719506,0.94656174,3331.8,3330.7,3.39530612]
[1768416719706,3.00129055,3331.9,3330.8,0.33953061]
[1768416719908,3.00129055,3331.9,3330.7,0.393]
[1768416719909,3.00129055,3331.9,3330.9,3.0021408]
[1768416720334,6.00240096,3332.0,3330.7,3.3953501]
[1768416720543,6.9489627,3332.0,3330.7,3.3953501]
[1768416720706,0.94656174,3331.9,3330.7,3.3953501]
[1768416721215,0.94656174,3331.9,3330.7,6.39772197]
[1768416721414,0.94656174,3331.9,3330.8,0.6397722]
[1768416721916,3.00120048,3332.0,3330.8,0.6397722]
[1768416722110,3.94776222,3332.0,3330.8,0.6397722]
[1768416722311,6.9489627,3332.0,3330.9,3.00219159]
[1768416722609,3.94776222,3332.0,3330.9,6.00438318]
[1768416722809,6.9489627,3332.0,3331.0,0.66441554]
[1768416723517,3.0011469,3332.1,3331.0,1.58089439]